{"text_format":"1","workbook":"xlsx","n_sheets":1,"sheets":["work"],"not_rendered":{"charts":0,"images":0,"macros":1,"external_links":0,"defined_names":1,"comments":1,"pivot_tables":0},"unopened":[],"bounds":{"document_bytes":16777216,"sheet_cells":100000,"rows_first":2000,"rows_last":500,"rows_between":2000,"halvings":0,"cell_chars":16384,"cell_head_chars":4096},"cells_cut":0,"cells_raw":0,"read":"whole","date_system":"1900"}

{"sheet":"work","index":0,"n_rows":41,"n_cols":57,"rows_kept":41,"cut":false,"hidden":false,"merged":[[0,0,0,6],[0,13,1,13],[0,14,1,14],[0,7,0,8],[0,26,0,55],[0,15,1,15],[0,16,1,16],[0,17,1,17],[0,18,1,18],[0,20,0,24]]}
["activity",null,null,null,null,null,null,"acc",null,"gmail.com","myrambler.ru","outlook.com","yandex.ru","path","IDE","Дата рождения","Образование","Период обучения","Уч.степень","Посты","Заполнение профиля",null,null,null,null,"Установленных invate","Отправленных Invate",null,null,null,null,null,null,null,null,null,null,null,null,null,null,null,null,null,null,null,null,null,null,null,null,null,null,null,null,null,"Эффективность цикла"]
[null,{"$f":"COUNTIF(D3:D880,\"-1\")-SUM(B3:B880)","v":6},{"$f":"COUNTIF(D3:D880,\"0\")","v":21},{"$f":"COUNTIF(D3:D880,\"+1\")","v":12},null,null,"№","name","service",{"$f":"IF(COUNTIF($I$3:I3,I3)=1,COUNTIF($I$3:$I$880,I3),\"\")","v":22},{"$f":"IF(COUNTIF($I$23:I23,I23)=1,COUNTIF($I$23:$I$880,I23),\"\")","v":1},{"$f":"IF(COUNTIF($I$24:I24,I24)=1,COUNTIF($I$24:$I$880,I24),\"\")","v":15},{"$f":"IF(COUNTIF($I$39:I39,I39)=1,COUNTIF($I$39:$I$880,I39),\"\")","v":1},null,null,null,null,null,null,null,null,null,null,null,null,null,1,2,3,4,5,6,7,8,9,10,11,12,13,14,15,16,17,18,19,21,22,23,24,25,26,27,28,29,30,31]
[null,null,null,{"$f":"VLOOKUP(E3,{\"off\",-1;\"on\",1;\"а\",0},2)","v":-1},"off",null,{"$f":"IFERROR(IF(SUBTOTAL(3,H3),G2+1,G2),1)","v":1},"FarikDanov","@gmail.com",null,null,null,null," ",null," "]
[null,null,null,{"$f":"VLOOKUP(E4,{\"off\",-1;\"on\",1;\"а\",0},2)","v":-1},"off",null,{"$f":"IFERROR(IF(SUBTOTAL(3,H4),G3+1,G3),1)","v":2},"DenisMagaev727","@gmail.com",null,null,null,null," ",null," "]
[1,null,null,{"$f":"VLOOKUP(E5,{\"off\",-1;\"on\",1;\"а\",0},2)","v":1},"on",1,3,"MinevaAlisa92","@gmail.com",null,null,null,null," ","BlueStacks","1992-12-01","МГУ приборостроения и информатики","2014-2018","Бакалавр",1,null,null,null,null,1,4,null,null,null,null,null,null,null,null,null,null,null,null,null,null,null,null,null,null,null,null,null,null,4]
[1,null,null,{"$f":"VLOOKUP(E6,{\"off\",-1;\"on\",1;\"а\",0},2)","v":1},"on",2,4,"AnnFertik","@gmail.com",null,null,null,null," ","BlueStacks",null,null,null,null,null,null,null,null,null,null,5]
[1,null,null,{"$f":"VLOOKUP(E7,{\"off\",-1;\"on\",1;\"а\",0},2)","v":1},"on",3,5,"ShternEvgeniya","@gmail.com",null,null,null,null," ","BlueStacks"]
[1,null,null,{"$f":"VLOOKUP(E8,{\"off\",-1;\"on\",1;\"а\",0},2)","v":1},"on",4,6,"VladimirAgazov","@gmail.com",null,null,null,null," ","BlueStacks"]
[1,null,null,{"$f":"VLOOKUP(E9,{\"off\",-1;\"on\",1;\"а\",0},2)","v":1},"on",5,7,"DavidShamov","@gmail.com",null,null,null,null," ","BlueStacks"," "]
[1,null,null,{"$f":"VLOOKUP(E10,{\"off\",-1;\"on\",1;\"а\",0},2)","v":1},"on",6,8,"SuniSudanik","@gmail.com",null,null,null,null," ","BlueStacks",null,null,null,null,null,null,null,null,null,1]
[1,null,null,{"$f":"VLOOKUP(E11,{\"off\",-1;\"on\",1;\"а\",0},2)","v":1},"on",7,9,"MinokiFani","@gmail.com",null,null,null,null," ","BlueStacks"," "]
[null,null,null,{"$f":"VLOOKUP(E12,{\"off\",-1;\"on\",1;\"а\",0},2)","v":-1},"off",null,10,"AniSenikova","@gmail.com",null,null,null,null," ",null," "]
[null,null,null,{"$f":"VLOOKUP(E13,{\"off\",-1;\"on\",1;\"а\",0},2)","v":0},"а",null,11,"SanyaCaoMika","@gmail.com",null,null,null,null," "]
[1,null,null,{"$f":"VLOOKUP(E14,{\"off\",-1;\"on\",1;\"а\",0},2)","v":1},"on",8,12,"MeyerrIgor","@gmail.com",null,null,null,null," ","BlueStacks"," ",null,null,null,null,null,null,null,null,1,1,null,null,null,null,null,null,null,null,null,null,null,null,null,null,null,null,null,null,null,null,null,null,null,1]
[null,null,null,{"$f":"VLOOKUP(E15,{\"off\",-1;\"on\",1;\"а\",0},2)","v":-1},"off",null,13,"AnniKanLoci","@gmail.com",null,null,null,null," ","memu"]
[null,null,null,{"$f":"VLOOKUP(E16,{\"off\",-1;\"on\",1;\"а\",0},2)","v":0},"а",null,14,"MikaSanlu","@gmail.com",null,null,null,null," ",null," "]
[null,null,null,{"$f":"VLOOKUP(E17,{\"off\",-1;\"on\",1;\"а\",0},2)","v":0},"а",null,15,"AmikoIris","@gmail.com",null,null,null,null," "]
[null,null,null,{"$f":"VLOOKUP(E18,{\"off\",-1;\"on\",1;\"а\",0},2)","v":0},"а",null,16,"IlyaShamova","@gmail.com",null,null,null,null," ",null," "]
[null,null,null,{"$f":"VLOOKUP(E19,{\"off\",-1;\"on\",1;\"а\",0},2)","v":0},"а",null,17,"NikiLipanSan","@gmail.com",null,null,null,null," ",null," "]
[null,null,null,{"$f":"VLOOKUP(E20,{\"off\",-1;\"on\",1;\"а\",0},2)","v":0},"а",null,18,"ArtemNatok","@gmail.com",null,null,null,null," ",null," "]
[null,null,null,{"$f":"VLOOKUP(E21,{\"off\",-1;\"on\",1;\"а\",0},2)","v":-1},"off",null,19,"aisyco.company","@gmail.com",null,null,null,null," ",null," "]
[null,null,null,{"$f":"VLOOKUP(E22,{\"off\",-1;\"on\",1;\"а\",0},2)","v":-1},"off",null,20,"aisyntheticcompany","@gmail.com",null,null,null,null," ",null," "]
[1,null,null,{"$f":"VLOOKUP(E23,{\"off\",-1;\"on\",1;\"а\",0},2)","v":1},"on",9,21,"ChevrierDarshawn","@myrambler.ru",null,null,null,null," ","BlueStacks"," ",null,null,null,null,null,null,null,null,null,20]
[1,null,null,{"$f":"VLOOKUP(E24,{\"off\",-1;\"on\",1;\"а\",0},2)","v":1},"on",10,22,"mary12robersonevv","@outlook.com",null,null,null,null," ","BlueStacks"," "]
[null,null,null,{"$f":"VLOOKUP(E25,{\"off\",-1;\"on\",1;\"а\",0},2)","v":0},"а",null,23,"daniel_resnickcgbs","@outlook.com",null,null,null,null," ",null," "]
[null,null,null,{"$f":"VLOOKUP(E26,{\"off\",-1;\"on\",1;\"а\",0},2)","v":0},"а",null,24,"thomas_snowhci7","@outlook.com",null,null,null,null," ",null," "]
[null,null,null,{"$f":"VLOOKUP(E27,{\"off\",-1;\"on\",1;\"а\",0},2)","v":0},"а",null,25,"curtis60mouzonlqk","@outlook.com",null,null,null,null," ",null," "]
[null,null,null,{"$f":"VLOOKUP(E28,{\"off\",-1;\"on\",1;\"а\",0},2)","v":0},"а",null,26,"joseph_goldbergjlsb","@outlook.com",null,null,null,null," ",null," "]
[null,null,null,{"$f":"VLOOKUP(E29,{\"off\",-1;\"on\",1;\"а\",0},2)","v":0},"а",null,27,"brenda_georgewzb9","@outlook.com",null,null,null,null," ",null," "]
[null,null,null,{"$f":"VLOOKUP(E30,{\"off\",-1;\"on\",1;\"а\",0},2)","v":0},"а",null,28,"shawn_pursellvk84","@outlook.com",null,null,null,null," ",null," "]
[null,null,null,{"$f":"VLOOKUP(E31,{\"off\",-1;\"on\",1;\"а\",0},2)","v":0},"а",null,29,"laurie_smith9z1z","@outlook.com",null,null,null,null," ",null," "]
[null,null,null,{"$f":"VLOOKUP(E32,{\"off\",-1;\"on\",1;\"а\",0},2)","v":0},"а",null,30,"robertuh_willis19","@outlook.com",null,null,null,null," ",null," "]
[null,null,null,{"$f":"VLOOKUP(E33,{\"off\",-1;\"on\",1;\"а\",0},2)","v":0},"а",null,31,"desmond_nicholsongtym","@outlook.com",null,null,null,null," ",null," "]
[null,null,null,{"$f":"VLOOKUP(E34,{\"off\",-1;\"on\",1;\"а\",0},2)","v":0},"а",null,32,"franciscoig_leeh5","@outlook.com",null,null,null,null," ",null," "]
[null,null,null,{"$f":"VLOOKUP(E35,{\"off\",-1;\"on\",1;\"а\",0},2)","v":0},"а",null,33,"karen98midkiffpao","@outlook.com",null,null,null,null," ",null," "]
[null,null,null,{"$f":"VLOOKUP(E36,{\"off\",-1;\"on\",1;\"а\",0},2)","v":0},"а",null,34,"grant62boylan8ew","@outlook.com",null,null,null,null," ",null," "]
[null,null,null,{"$f":"VLOOKUP(E37,{\"off\",-1;\"on\",1;\"а\",0},2)","v":0},"а",null,35,"ruby83hayesnlj","@outlook.com",null,null,null,null," ",null," "]
[null,null,null,{"$f":"VLOOKUP(E38,{\"off\",-1;\"on\",1;\"а\",0},2)","v":0},"а",null,36,"timothyyc_salizar8g","@outlook.com",null,null,null,null," ",null," "]
[1,null,null,{"$f":"VLOOKUP(E39,{\"off\",-1;\"on\",1;\"а\",0},2)","v":1},"on",11,37,"webunits","@yandex.ru",null,null,null,null,null,"opera"," "]
[null,null,null,{"$f":"VLOOKUP(E40,{\"off\",-1;\"on\",1;\"а\",0},2)","v":0},"а",null,38,"ladlersem","@gmail.com"]
[1,null,null,{"$f":"VLOOKUP(E41,{\"off\",-1;\"on\",1;\"а\",0},2)","v":1},"on",12,39,"shostakvaleria313","@gmail.com"]